bitfinex-derivatives/quotes_SOLF0:USTF0_20241021
["timestamp","ask_amount","ask_price","bid_price","bid_amount"]
[1729523520172,3.00751395,163.43,163.42,3.0605]
[1729523520875,3.0601,163.45,163.42,3.0605]
[1729523521175,3.11606527,163.45,163.38,3.9149]
[1729523521476,3.0604,163.44,163.38,1.3194]
[1729523521673,3.03489381,163.45,163.38,1.3194]
[1729523521880,3.0602,163.45,163.38,1.3194]
[1729523522068,6.1318507,163.45,163.38,1.3194]
[1729523522271,5.98,163.47,163.38,1.3194]
[1729523522971,5.98,163.47,163.36,3.0616]
[1729523522972,3.0613,163.39,163.36,3.0616]
[1729523523174,8.97446123,163.47,163.28,2.6178]
[1729523523175,5.98,163.41,163.28,2.6178]
[1729523523480,9.8576,163.4,163.28,8.5978]
[1729523523678,5.98,163.39,163.28,8.5978]
[1729523524368,18.34,163.38,163.2,6.117]
[1729523524571,9.12410885,163.37,163.17,3.07456954]
[1729523524772,9.12410885,163.38,163.18,5.98]
[1729523524971,3.0623,163.34,163.29,3.063]
[1729523525168,3.0623,163.34,163.13,9.9533]
[1729523525169,15.62410885,163.38,163.19,3.03626383]
[1729523525371,3.08682736,163.34,163.15,6.5]
[1729523525573,3.08682736,163.34,163.16,6.5]
[1729523525769,6.5,163.33,163.17,1.2793]
[1729523525970,6.5,163.33,163.18,6.5]
[1729523526170,9.5065386,163.33,163.19,3.13861669]
[1729523526468,3.8811,163.32,163.19,3.13861669]
[1729523526775,3.8811,163.32,163.24,3.0639]
[1729523527369,3.0631,163.29,163.24,3.0639]
[1729523527769,3.8811,163.32,163.19,3.13861669]
[1729523529384,3.8811,163.32,163.24,3.064]
[1729523529576,3.8811,163.32,163.19,3.13861669]
[1729523529876,3.8811,163.32,163.18,6.5]
[1729523530270,3.8811,163.32,163.18,9.59152421]
[1729523530471,227.0,163.49,163.18,6.5]
[1729523530671,1.2532,163.4,163.18,9.56178622]
[1729523530871,9.1228,163.39,163.18,9.56178622]
[1729523531071,3.0615,163.38,163.18,9.56178622]
[1729523531369,12.18402277,163.39,163.18,9.56178622]
[1729523532071,9.1228,163.39,163.18,6.5]
[1729523532683,12.25360995,163.39,163.19,6.1299]
[1729523533180,12.25360995,163.39,163.33,3.0623]
[1729523533679,9.1228,163.39,163.33,3.0623]
[1729523533875,12.25115754,163.39,163.33,3.0623]
[1729523534474,12.25115754,163.39,163.32,3.0624]
[1729523534678,12.25115754,163.39,163.28,6.5]
[1729523534979,9.1228,163.39,163.28,6.5]
[1729523535282,9.1228,163.39,163.31,3.0626]
[1729523535283,12.25418316,163.39,163.31,3.0626]
[1729523535484,15.31548316,163.39,163.31,3.0626]
[1729523535685,15.31548316,163.39,163.32,3.0624]
[1729523536285,12.25418316,163.39,163.34,3.0621]
[1729523537785,12.25418316,163.39,163.33,3.0623]
[1729523538084,12.25418316,163.39,163.28,6.5]
[1729523539179,5.75418316,163.39,163.28,6.5]
[1729523539381,2.6228,163.39,163.34,3.062]
[1729523539579,5.61125058,163.39,163.34,3.062]
[1729523539776,3.0618,163.36,163.3,3.0628]
[1729523540081,3.03595441,163.36,163.26,2.6135]
[1729523540286,2.6228,163.39,163.26,2.6135]
[1729523540580,3.0616,163.37,163.26,2.6135]
[1729523540781,6.2001807,163.37,163.26,2.6135]
[1729523541286,6.2001807,163.37,163.3,3.0627]
[1729523541485,6.2001807,163.37,163.26,2.6135]
[1729523542485,6.2001807,163.37,163.31,3.0625]
[1729523543182,3.0617,163.36,163.26,2.6135]
[1729523544482,2.6228,163.39,163.26,2.6135]
[1729523544787,5.76027607,163.39,163.32,3.0623]
[1729523545082,5.76027607,163.39,163.2,1.2602]
[1729523545083,2.6228,163.39,163.16,81.22821638]
[1729523545285,2.6228,163.39,163.21,1.3269]
[1729523545286,5.72104229,163.39,163.21,1.3269]
[1729523545488,2.6228,163.39,163.21,1.3269]
[1729523545989,5.62203831,163.39,163.21,1.3269]
[1729523546381,3.0622,163.34,163.27,3.0633]
[1729523546583,3.0622,163.34,163.05,278.0]
[1729523546584,1.2767,163.33,163.05,278.0]
[1729523546884,1.2767,163.33,163.19,1.2411]
[1729523547181,1.2767,163.33,163.23,3.0641]
[1729523547182,3.0625,163.32,163.23,3.0641]
[1729523547381,3.0625,163.32,163.19,1.2411]
[1729523547382,3.0625,163.32,163.19,4.37336828]
[1729523547683,1.2767,163.33,163.14,6.1317]
[1729523547890,1.2767,163.33,163.15,3.9132]
[1729523548085,4.34058216,163.33,163.16,9.59301526]
[1729523548285,7.7767,163.33,163.17,6.1306]
[1729523548481,4.29642251,163.33,163.17,9.16013577]
[1729523548681,4.29642251,163.33,163.28,3.0631]
[1729523549082,4.29642251,163.33,163.21,6.5]
[1729523549283,7.35872251,163.33,163.27,3.0633]
[1729523549792,4.29642251,163.33,163.25,3.0637]
[1729523549996,4.29642251,163.33,163.22,3.9468]
[1729523550287,5.54322251,163.33,163.22,3.9468]
[1729523550887,3.0628,163.31,163.25,3.0637]
[1729523551091,5.54322251,163.33,163.22,3.9468]
[1729523551290,66.2,163.36,163.22,3.9468]
[1729523551490,9.55596126,163.36,163.23,3.12831347]
[1729523552188,3.0621,163.35,163.29,3.0629]
[1729523554895,9.5619,163.36,163.26,3.0636]
[1729523555094,9.60831147,163.36,163.23,2.99029373]
[1729523555595,3.0619,163.35,163.23,2.99029373]
[1729523555893,9.60831147,163.36,163.23,2.99029373]
[1729523556098,3.0622,163.34,163.29,3.0629]
[1729523556386,9.60831147,163.36,163.23,2.99029373]
[1729523557295,3.0621,163.35,163.26,3.0635]
[1729523557495,1.2792,163.35,163.22,3.9468]
[1729523557695,3.8942,163.35,163.22,3.9468]
[1729523558394,3.0627,163.32,163.27,3.0633]
[1729523558595,3.8942,163.35,163.22,10.2268]
[1729523558797,3.8942,163.35,163.31,3.0626]
[1729523559298,6.9563,163.35,163.3,3.0627]
[1729523559895,6.9562,163.35,163.3,3.0627]
[1729523560590,3.8942,163.35,163.22,10.2268]
[1729523561197,3.0622,163.34,163.22,10.2268]
[1729523561798,3.8942,163.35,163.22,10.2268]
[1729523561992,6.9563,163.35,163.22,10.2268]
[1729523562398,6.9563,163.35,163.3,3.0628]
[1729523562603,3.8942,163.35,163.3,3.0628]
[1729523562794,3.8942,163.35,163.22,3.9468]
[1729523565599,6.28,163.34,163.22,3.9468]
[1729523565799,9.3422,163.34,163.29,3.063]
[1729523565998,6.28,163.34,163.22,3.9468]
[1729523567104,9.3421,163.34,163.29,3.0629]
[1729523568001,9.3421,163.34,163.22,3.9468]
[1729523568002,6.28,163.34,163.3,3.0628]
[1729523568405,6.28,163.34,163.31,3.0626]
[1729523568900,6.28,163.34,163.22,3.9468]
[1729523569405,6.28,163.38,163.22,10.0755]
[1729523569599,6.28,163.38,163.26,3.0635]
[1729523569804,3.0621,163.35,163.26,6.28]
[1729523570097,6.12853414,163.35,163.26,6.28]
[1729523570506,3.0622,163.34,163.3,3.0627]
[1729523572206,3.06643414,163.35,163.26,6.28]
[1729523572407,3.0625,163.32,163.28,3.0631]
[1729523572711,6.19851437,163.32,163.28,3.0631]
[1729523573107,1.3355,163.41,163.22,13.26031581]
[1729523573108,3.0618,163.36,163.32,3.0624]
[1729523573406,6.28,163.37,163.22,10.2268]
[1729523573611,6.28,163.37,163.22,13.3400161]
[1729523573810,3.0622,163.34,163.3,3.0627]
[1729523575010,6.28,163.37,163.22,13.3400161]
[1729523575908,3.0622,163.34,163.3,3.0629]
[1729523576104,3.0622,163.34,163.22,13.3400161]
[1729523576105,6.28,163.37,163.22,3.9468]
[1729523576305,1.2477,163.36,163.22,13.31296886]
[1729523576510,3.0625,163.33,163.22,13.31296886]
[1729523576709,1.2477,163.36,163.22,13.31296886]
[1729523576915,3.0626,163.32,163.28,3.0631]
[1729523577207,6.28,163.38,163.23,6.1284]
[1729523577514,6.28,163.38,163.22,13.26239602]
[1729523577813,6.28,163.38,163.24,6.128]
[1729523578214,6.28,163.38,163.22,10.2268]
[1729523578417,6.28,163.38,163.22,13.32277692]
[1729523578715,9.3415,163.38,163.34,3.062]
[1729523579016,6.28,163.38,163.34,3.062]
[1729523579413,6.28,163.38,163.27,6.28]
[1729523579918,3.0616,163.37,163.27,6.28]
[1729523580211,6.28,163.38,163.27,6.28]
[1729523580419,3.0619,163.36,163.32,3.0624]
[1729523580620,6.28,163.38,163.22,3.9468]
[1729523580822,6.28,163.38,163.23,9.38846902]
[1729523580823,9.40777628,163.38,163.23,9.38846902]
[1729523581512,3.0626,163.32,163.28,3.0632]
[1729523581717,3.0626,163.32,163.23,9.38846902]
[1729523582612,9.40777628,163.38,163.23,6.28]
[1729523582819,6.28,163.38,163.23,6.28]
[1729523583014,3.0622,163.34,163.23,6.28]
[1729523583215,3.0622,163.34,163.23,9.32528421]
[1729523583620,3.0622,163.34,163.3,3.0628]
[1729523583815,6.28,163.36,163.23,6.28]
[1729523584016,9.40651222,163.36,163.23,9.30627992]
[1729523584425,1.248,163.4,163.23,6.28]
[1729523584722,6.28,163.39,163.24,6.1278]
[1729523585021,3.0619,163.36,163.32,3.0625]
[1729523586624,6.28,163.39,163.29,3.063]
[1729523586829,3.0625,163.33,163.29,3.063]
[1729523587321,14.99915198,163.39,163.23,6.28]
[1729523587524,6.12,163.38,163.22,3.9468]
[1729523587724,29.70338936,163.38,163.22,3.9468]
[1729523587916,20.49330821,163.37,163.22,3.9468]
[1729523588425,3.063,163.3,163.26,3.0636]
[1729523588926,3.063,163.3,163.22,3.9468]
[1729523589220,3.063,163.3,163.27,3.0633]
[1729523589433,3.0634,163.28,163.22,3.9468]
[1729523589623,3.03400502,163.27,163.22,3.9468]
[1729523589819,6.12,163.32,163.22,3.9468]
[1729523590213,3.0635,163.27,163.22,3.9468]
[1729523590419,3.0635,163.27,163.18,6.12]
[1729523590420,3.04166975,163.27,163.18,6.12]
[1729523590618,1.2519,163.31,163.17,3.8991]
[1729523590820,3.0639,163.25,163.21,3.0644]
[1729523591027,6.15401081,163.25,163.21,3.0644]
[1729523592524,3.09011081,163.25,163.23,3.064]
[1729523592725,6.12,163.3,163.17,3.8991]
[1729523593022,1.2519,163.31,163.17,3.8991]
[1729523593225,6.12,163.3,163.17,3.8991]
[1729523593527,1.3483,163.33,163.17,3.8991]
[1729523593823,6.12,163.35,163.17,3.8991]
[1729523594029,6.12,163.36,163.18,3.0830684]
[1729523594231,9.23793071,163.36,163.23,3.0641]
[1729523594436,9.23793071,163.36,163.24,9.9063]
[1729523594834,3.0621,163.35,163.24,9.9063]
[1729523595125,9.23793071,163.36,163.24,9.9063]
[1729523595830,3.062,163.35,163.24,9.9063]
[1729523596640,12.29983071,163.36,163.32,3.0623]
[1729523596935,9.1819,163.36,163.24,12.95917955]
[1729523597132,12.26818623,163.36,163.32,3.0624]
[1729523597332,3.0625,163.32,163.24,9.9063]
[1729523597632,9.20628623,163.36,163.24,12.90922278]
[1729523598127,3.0625,163.33,163.29,3.063]
[1729523598325,9.20628623,163.36,163.29,3.063]
[1729523599630,3.0625,163.33,163.29,3.063]
[1729523599830,9.20628623,163.36,163.29,3.063]
[1729523600728,3.0625,163.33,163.29,3.063]
[1729523601038,9.20628623,163.36,163.29,3.063]
[1729523601438,3.0625,163.33,163.29,3.063]
[1729523601638,9.20628623,163.36,163.29,3.063]
[1729523602543,9.20628623,163.36,163.24,9.9063]
[1729523602744,9.20628623,163.36,163.19,6.12]
[1729523602942,7.421,163.35,163.22,3.0642]
[1729523603349,1.3563,163.34,163.22,3.0642]
[1729523603650,3.0638,163.25,163.22,3.0642]
[1729523603948,3.04700355,163.24,163.18,6.12]
[1729523604139,3.064,163.24,163.18,6.12]
[1729523604345,3.1263973,163.23,163.18,6.12]
[1729523604552,6.12,163.28,163.22,3.0643]
[1729523604754,8.74502401,163.31,163.18,6.12]
[1729523604949,6.12,163.3,163.18,6.12]
[1729523605356,3.0634,163.27,163.24,3.0639]
[1729523605546,3.04241818,163.27,163.18,6.12]
[1729523605744,10.08802401,163.32,163.18,6.12]
[1729523605951,7.463,163.32,163.18,6.12]
[1729523606253,20.47965518,163.38,163.18,24.46]
[1729523606450,3.05437689,163.38,163.23,6.1281]
[1729523606654,3.0618,163.36,163.32,3.0623]
[1729523606854,6.15603925,163.36,163.27,3.04640442]
[1729523607055,3.0618,163.36,163.27,3.0633]
[1729523607255,6.10697788,163.36,163.27,3.01635433]
[1729523607453,6.10697788,163.36,163.24,10.0702]
[1729523607853,6.10697788,163.36,163.32,3.0623]
[1729523608057,6.10697788,163.36,163.27,3.13379498]
[1729523608357,8.74502401,163.38,163.33,3.0622]
[1729523608548,8.74502401,163.38,163.24,13.06312463]
[1729523608549,3.10234338,163.38,163.24,13.06312463]
[1729523608859,8.74502401,163.39,163.24,13.06312463]
[1729523609161,3.0616,163.37,163.33,3.0621]
[1729523609757,3.0617,163.37,163.33,3.0621]
[1729523610556,3.0617,163.37,163.34,3.0621]
[1729523611359,6.12,163.38,163.24,13.06312463]
[1729523611563,6.12,163.38,163.25,6.1276]
[1729523611759,6.12,163.39,163.25,6.1276]
[1729523611974,3.0614,163.38,163.34,3.062]
[1729523612357,9.12824938,163.39,163.34,3.062]
[1729523612760,3.0617,163.37,163.33,3.0622]
[1729523614262,3.0619,163.36,163.32,3.0623]
[1729523614464,3.0619,163.36,163.29,6.12]
[1729523615863,8.74502401,163.38,163.29,6.12]
[1729523616063,5.94,163.46,163.42,0.7282]
[1729523616263,5.94,163.45,163.31,3.9208]
[1729523616767,3.0605,163.43,163.39,3.061]
[1729523617464,11.80552401,163.43,163.39,3.061]
[1729523617858,8.74502401,163.43,163.31,3.9208]
[1729523618064,3.0546331,163.43,163.31,7.04436915]
[1729523618272,5.94,163.45,163.38,3.0613]
[1729523618572,3.0608,163.42,163.38,3.0613]
[1729523618868,3.0608,163.42,163.31,7.04436915]
[1729523619571,3.0608,163.42,163.31,3.9208]
[1729523619961,3.0608,163.42,163.31,6.95582462]
[1729523619962,6.06487999,163.42,163.31,6.95582462]
[1729523621267,6.06487999,163.42,163.39,3.0612]
[1729523621664,3.0604,163.44,163.35,3.0619]
[1729523621864,5.94,163.45,163.31,3.9208]
[1729523621865,8.98157873,163.45,163.31,7.01047783]
[1729523622966,8.98157873,163.45,163.39,3.061]
[1729523623370,3.0607,163.42,163.38,3.0613]
[1729523623769,8.98157873,163.45,163.38,3.0613]
[1729523623971,3.0607,163.42,163.38,3.0613]
[1729523624273,5.94,163.46,163.4,3.0609]
[1729523624571,3.0604,163.44,163.4,3.0609]
[1729523625965,3.0605,163.43,163.4,3.0609]
[1729523626272,5.94,163.46,163.4,3.0609]
[1729523626463,3.0603,163.44,163.4,3.0609]
[1729523627172,3.0603,163.44,163.35,5.94]
[1729523627173,5.94,163.46,163.35,5.94]
[1729523627376,5.94,163.46,163.31,3.9208]
[1729523627574,3.0609,163.41,163.31,9.8608]
[1729523627867,3.04195366,163.41,163.37,3.0614]
[1729523628074,5.94,163.43,163.37,3.0614]
[1729523628266,3.0609,163.41,163.37,3.0614]
[1729523628462,6.19813491,163.41,163.37,3.0614]
[1729523628660,3.0609,163.41,163.37,3.0614]
[1729523629174,6.09213068,163.41,163.37,3.0614]
[1729523630173,6.09213068,163.41,163.32,3.10414689]
[1729523630366,6.09213068,163.41,163.38,3.0613]
[1729523630966,3.0609,163.41,163.38,3.0613]
[1729523631166,6.10756896,163.41,163.38,3.0613]
[1729523632379,3.0605,163.43,163.4,3.0609]
[1729523632667,3.08312483,163.43,163.34,3.08220577]
[1729523632873,5.94,163.44,163.31,9.8608]
[1729523633074,3.9287,163.49,163.31,9.8608]
[1729523633264,5.94,163.48,163.31,12.84773035]
[1729523634075,3.0603,163.44,163.41,3.0607]
[1729523634379,8.7191562,163.47,163.31,12.84773035]
[1729523634675,3.0605,163.43,163.39,3.0612]
[1729523635680,5.94,163.48,163.31,9.8608]
[1729523635882,3.01045161,163.43,163.31,9.8608]
[1729523636072,14.6591562,163.48,163.36,3.0617]
[1729523636277,3.0604,163.43,163.34,3.03986073]
[1729523636470,3.0604,163.43,163.31,9.8608]
[1729523636671,3.0604,163.43,163.4,3.061]
[1729523636978,3.0602,163.45,163.31,9.8608]
[1729523637179,5.94,163.46,163.41,3.0607]
[1729523637878,3.0601,163.45,163.41,3.0607]
[1729523638076,5.94,163.46,163.41,3.0607]
[1729523638274,3.0603,163.44,163.41,3.0607]
[1729523638472,3.9287,163.49,163.39,3.061]
[1729523638778,3.0601,163.45,163.36,9.03224571]
[1729523638978,3.07386501,163.49,163.36,9.03224571]
[1729523638979,5.94,163.47,163.36,9.03224571]
[1729523639175,2.657,163.51,163.36,5.94]
[1729523639476,9.1722,163.6,163.36,5.94]
[1729523639477,8.44668263,163.67,163.36,36.28]
[1729523639782,3.0574,163.6,163.44,6.1204]
[1729523639974,3.08029826,163.6,163.45,9.9296]
[1729523640174,2.5804,163.63,163.45,12.92687878]
[1729523640378,2.5804,163.63,163.56,3.058]
[1729523640578,5.64568735,163.63,163.56,3.058]
[1729523640778,2.5804,163.63,163.56,3.058]
[1729523640985,3.0573,163.6,163.56,3.058]
[1729523641281,1.3551,163.66,163.51,5.94]
[1729523641481,1.3551,163.66,163.51,9.02180031]
[1729523641482,3.0567,163.63,163.51,9.02180031]
[1729523642174,6.14156008,163.63,163.59,3.0573]
[1729523642575,3.08486008,163.63,163.51,9.02180031]
[1729523642772,5.94,163.66,163.51,9.02180031]
[1729523643085,2.5562,163.7,163.51,9.02180031]
[1729523643281,5.94,163.69,163.57,3.0577]
[1729523643479,8.95785112,163.69,163.51,9.02180031]
[1729523643677,3.0568,163.63,163.51,9.02180031]
[1729523643980,8.95785112,163.69,163.51,9.02180031]
[1729523644380,8.95785112,163.69,163.58,3.0575]
[1729523644880,3.0569,163.63,163.58,3.0575]
[1729523645079,3.0569,163.63,163.59,3.0574]
[1729523646385,2.5562,163.7,163.56,5.94]
[1729523646586,3.0562,163.66,163.61,3.0569]
[1729523646986,5.94,163.69,163.56,5.94]
[1729523647179,3.0563,163.66,163.62,3.0569]
[1729523648485,3.0556,163.69,163.62,5.94]
[1729523648883,3.08815671,163.7,163.62,5.94]
[1729523649081,3.8201,163.76,163.62,5.94]
[1729523649286,5.94,163.74,163.63,3.11213799]
[1729523649490,3.0552,163.71,163.65,3.0562]
[1729523649786,3.0552,163.71,163.62,8.97259061]
[1729523650285,3.0552,163.71,163.62,5.94]
[1729523650490,5.94,163.74,163.57,3.912]
[1729523650883,3.0561,163.67,163.62,3.0567]
[1729523651088,3.0561,163.67,163.57,3.912]
[1729523651089,2.98365133,163.67,163.57,3.912]
[1729523651284,5.94,163.68,163.57,3.912]
[1729523651478,3.0561,163.67,163.57,3.912]
[1729523651684,6.05320774,163.67,163.57,3.912]
[1729523652192,6.05320774,163.67,163.62,3.0568]
[1729523653194,6.05320774,163.67,163.57,3.912]
[1729523653383,6.05320774,163.67,163.63,3.0566]
[1729523655991,5.94,163.81,163.61,5.94]
[1729523656185,3.8536,163.82,163.61,5.94]
[1729523656383,3.0545,163.75,163.7,3.0552]
[1729523656585,3.1071639,163.75,163.7,3.0552]
[1729523656783,5.94,163.81,163.7,3.0552]
[1729523656990,5.94,163.81,163.69,3.0555]
[1729523657190,5.94,163.81,163.65,5.94]
[1729523657486,5.94,163.81,163.57,10.0274]
[1729523657487,3.0562,163.66,163.57,3.912]
[1729523657679,3.07690543,163.66,163.59,3.0573]
[1729523657880,5.92,163.69,163.59,3.0573]
[1729523658084,3.0568,163.63,163.59,3.0573]
[1729523658389,3.8876,163.68,163.56,3.0578]
[1729523658581,3.0573,163.6,163.55,5.92]
[1729523658790,5.92,163.64,163.55,5.92]
[1729523658991,5.92,163.65,163.55,5.92]
[1729523659195,3.0568,163.63,163.55,5.92]
[1729523659388,5.92,163.65,163.55,5.92]
[1729523659595,5.92,163.65,163.58,3.0575]
[1729523660592,3.0568,163.63,163.59,3.0574]
[1729523660889,5.92,163.65,163.55,5.92]
[1729523661093,5.92,163.65,163.56,1.2403]
[1729523661287,3.0567,163.64,163.6,3.0572]
[1729523662193,3.056,163.67,163.59,3.0573]
[1729523662387,3.056,163.67,163.56,4.37125515]
[1729523662891,3.0553,163.71,163.67,3.0558]
[1729523663094,6.12413181,163.71,163.67,3.0558]
[1729523663591,3.06883181,163.71,163.68,3.0558]
[1729523663787,5.92,163.75,163.63,5.92]
[1729523663991,5.92,163.75,163.64,2.5854]
[1729523664186,3.0555,163.7,163.64,2.5854]
[1729523664392,3.11118649,163.69,163.64,1.232]
[1729523664592,5.92,163.75,163.66,3.056]
[1729523664789,5.92,163.75,163.64,1.232]
[1729523665493,3.0549,163.73,163.64,1.232]
[1729523665692,2.99801907,163.72,163.64,1.232]
[1729523665993,3.07262516,163.83,163.65,2.5473]
[1729523665994,3.0539,163.79,163.65,2.5473]
[1729523666189,8.99262516,163.83,163.65,2.5473]
[1729523666190,1.2504,163.82,163.65,5.5444015]
[1729523666393,4.3288597,163.82,163.75,3.0544]
[1729523666698,3.0535,163.8,163.72,5.92]
[1729523667294,4.3288597,163.82,163.72,5.92]
[1729523667594,4.3288597,163.82,163.73,1.3625]
[1729523667797,3.0784597,163.82,163.73,2.596]
[1729523667994,6.1316597,163.82,163.73,3.8656]
[1729523668990,3.0528,163.84,163.73,3.8656]
[1729523669189,3.05769493,163.85,163.73,3.8656]
[1729523669389,5.92,163.9,163.78,3.0539]
[1729523669584,3.0523,163.87,163.78,3.0539]
[1729523669790,5.92,163.9,163.74,5.92]
[1729523669791,3.05158137,163.9,163.74,5.92]
[1729523669985,2.6564,163.91,163.79,3.0536]
[1729523670187,2.6564,163.91,163.74,5.92]
[1729523670384,2.6564,163.91,163.73,3.8656]
[1729523670587,2.6564,163.91,163.74,5.92]
[1729523671095,2.6564,163.91,163.76,3.0543]
[1729523671297,2.6564,163.91,163.74,2.8473]
[1729523671492,2.6564,163.91,163.73,1.3625]
[1729523672291,3.0535,163.81,163.73,1.3625]
[1729523672492,3.04985092,163.81,163.73,1.3625]
[1729523672795,5.92,163.85,163.73,1.3625]
[1729523673388,8.91594953,163.85,163.73,1.3625]
[1729523673591,3.0529,163.84,163.79,3.0536]
[1729523673791,3.0529,163.84,163.77,5.92]
[1729523673995,5.92,163.88,163.77,5.92]
[1729523674190,3.03292524,163.85,163.77,7.1737]
[1729523675087,2.6564,163.91,163.8,3.0534]
[1729523675088,5.92,163.89,163.8,3.0534]
[1729523675292,8.95292524,163.89,163.77,7.1737]
[1729523675495,8.95292524,163.89,163.77,5.92]
[1729523675701,3.0531,163.83,163.78,3.0539]
[1729523676294,3.0531,163.83,163.77,5.92]
[1729523676498,3.0531,163.83,163.79,3.0537]
[1729523676892,3.0527,163.85,163.77,5.92]
[1729523677095,8.95292524,163.89,163.8,3.0533]
[1729523677495,3.0527,163.85,163.79,3.0536]
[1729523677695,3.0527,163.85,163.77,5.92]
[1729523678095,3.0529,163.84,163.8,3.0534]
[1729523678397,3.0529,163.84,163.77,5.92]
[1729523678603,8.95292524,163.89,163.77,5.92]
[1729523678797,3.0527,163.85,163.77,5.92]
[1729523679300,3.0527,163.85,163.81,3.0533]
[1729523679890,8.95292524,163.89,163.77,5.92]
[1729523680095,3.0529,163.84,163.8,3.0535]
[1729523681296,8.95292524,163.89,163.77,5.92]
[1729523681505,8.95292524,163.89,163.8,3.0535]
[1729523681506,3.0527,163.85,163.8,3.0535]
[1729523682303,3.0528,163.84,163.8,3.0535]
[1729523682600,201.26831413,163.99,163.78,36.73]
[1729523682803,3.0489,164.05,163.8,18.38]
[1729523683098,3.0489,164.05,163.99,3.0499]
[1729523683099,3.01837451,164.05,163.99,3.0499]
[1729523683399,3.01837451,164.05,163.85,6.105]
[1729523683400,5.63379303,164.11,163.93,66.02]
[1729523683601,2.5598,164.11,163.93,66.02]
[1729523683801,2.5598,164.11,163.98,3.0501]
[1729523684005,6.92,164.1,163.93,66.02]
[1729523684194,3.0492,164.04,163.97,3.0502]
[1729523684397,6.92,164.1,163.97,9.9702]
[1729523684900,6.92,164.1,163.98,3.0501]
[1729523685201,6.92,164.1,163.97,6.92]
[1729523685396,3.0485,164.08,164.02,3.0494]
[1729523686005,5.65640716,164.11,163.98,6.92]
[1729523686504,5.65640716,164.11,163.99,3.0498]
[1729523686505,3.0485,164.08,163.99,3.0498]
[1729523686803,5.65640716,164.11,163.98,6.92]
[1729523687097,3.0488,164.06,164.0,3.0497]
[1729523687299,5.65640716,164.11,163.9,1.2913]
[1729523687493,5.65640716,164.11,163.91,6.92]
[1729523687696,3.0494,164.03,163.97,3.0502]
[1729523687900,3.0494,164.03,163.97,9.9502]
[1729523688698,3.0494,164.03,163.98,3.0502]
[1729523690604,3.0491,164.04,163.97,6.9]
[1729523691303,3.0491,164.04,163.99,3.0498]
[1729523691503,3.0491,164.04,163.97,6.9]
[1729523692008,3.0491,164.04,164.0,3.0498]
[1729523692407,3.0493,164.03,163.98,3.05]
[1729523692709,3.0493,164.03,163.97,6.9]
[1729523693898,3.0493,164.03,163.99,3.05]
[1729523694109,3.0485,164.07,163.97,6.9]
[1729523694412,5.65640716,164.11,163.97,3.0502]
[1729523694706,3.0498,164.01,163.95,6.9]
[1729523695004,3.08270955,164.01,163.96,3.0505]
[1729523695211,3.0497,164.01,163.96,3.0505]
[1729523695512,3.01463228,164.01,163.92,3.0511]
[1729523695713,3.0505,163.97,163.92,3.0511]
[1729523695907,6.064827,163.97,163.92,3.0511]
[1729523697110,6.9,164.08,163.89,6.9]
[1729523697312,3.9283,164.07,163.88,1.2755]
[1729523697510,22.3083,164.07,163.93,3.0511]
[1729523697815,22.3083,164.07,163.91,6.9]
[1729523698015,22.3083,164.07,163.93,3.051]
[1729523698225,3.0503,163.98,163.91,6.9]
[1729523698517,3.06744559,163.97,163.91,6.9]
[1729523698812,3.06744559,163.97,163.94,3.0508]
[1729523699311,3.0503,163.98,163.94,3.0508]